[Event "Early-Titled-Tuesday-Blitz-April-23-2024"]
[Site "Chess.com"]
[Date "2024.04.23"]
[Round "3"]
[White "Aragon"]
[Black "ViktoriyaTarasova"]
[Result "0-1"]
[WhiteElo "2083"]
[BlackElo "2367"]
[TimeControl "180+1"]
[EndTime "8:28:54 PDT"]
[Termination "ViktoriyaTarasova won on time"]

1. e4 {[%clk 0:02:59.6]} 1... e5 {[%clk 0:02:58.7]} 2. Nf3 {[%clk 0:02:58.3]}
2... Nc6 {[%clk 0:02:58.4]} 3. Nc3 {[%clk 0:02:58.8]} 3... Nf6 {[%clk 0:02:57]}
4. Be2 {[%clk 0:02:59.4]} 4... Bc5 {[%clk 0:02:55.7]} 5. Nxe5 {[%clk 0:02:59.4]}
5... Nxe5 {[%clk 0:02:54.5]} 6. d4 {[%clk 0:02:58.6]} 6... Bb4 {[%clk
0:02:54.8]} 7. dxe5 {[%clk 0:02:58.2]} 7... Nxe4 {[%clk 0:02:54.9]} 8. Qd4
{[%clk 0:02:57]} 8... Bxc3+ {[%clk 0:02:45]} 9. bxc3 {[%clk 0:02:55.8]} 9... Ng5
{[%clk 0:02:42.4]} 10. Qh4 {[%clk 0:02:37.2]} 10... Ne6 {[%clk 0:02:36.6]} 11.
Qg3 {[%clk 0:02:25.2]} 11... O-O {[%clk 0:02:30.8]} 12. f4 {[%clk 0:02:18.9]}
12... f6 {[%clk 0:02:29]} 13. Ba3 {[%clk 0:02:04.5]} 13... Re8 {[%clk
0:02:21.7]} 14. Bh5 {[%clk 0:01:54.5]} 14... g6 {[%clk 0:02:06.1]} 15. O-O
{[%clk 0:01:36.5]} 15... Ng7 {[%clk 0:01:37.8]} 16. Bxg6 {[%clk 0:01:09.5]}
16... hxg6 {[%clk 0:01:36]} 17. Qxg6 {[%clk 0:01:10.4]} 17... Re6 {[%clk
0:01:32.6]} 18. f5 {[%clk 0:00:17.8]} 18... Ra6 {[%clk 0:01:30.3]} 19. Bb4
{[%clk 0:00:14]} 19... d5 {[%clk 0:00:47.6]} 20. exf6 {[%clk 0:00:11.1]} 20...
Rxf6 {[%clk 0:00:37.4]} 21. Qg3 {[%clk 0:00:11]} 21... Bxf5 {[%clk 0:00:33.4]}
22. Bc5 {[%clk 0:00:10.4]} 22... Rf7 {[%clk 0:00:27.2]} 23. Rae1 {[%clk
0:00:09.2]} 23... Qd7 {[%clk 0:00:26]} 24. Bd4 {[%clk 0:00:08.4]} 24... Be4
{[%clk 0:00:20.6]} 25. Rf4 {[%clk 0:00:06]} 25... Rxf4 {[%clk 0:00:19.9]} 26.
Qxf4 {[%clk 0:00:06.6]} 26... Rf8 {[%clk 0:00:19.9]} 27. Qe5 {[%clk 0:00:06.8]}
27... Re8 {[%clk 0:00:18.5]} 28. Qg5 {[%clk 0:00:05.9]} 28... Qe7 {[%clk
0:00:18.3]} 29. Qg3 {[%clk 0:00:05.2]} 29... c5 {[%clk 0:00:16.5]} 30. Be3
{[%clk 0:00:02.8]} 30... b6 {[%clk 0:00:16]} 31. Bh6 {[%clk 0:00:02.6]} 31...
Rf8 {[%clk 0:00:15.4]} 32. Re2 {[%clk 0:00:01.7]} 32... Rf7 {[%clk 0:00:15.8]}
33. h3 {[%clk 0:00:01.8]} 33... Kh7 {[%clk 0:00:15.7]} 34. Rd2 {[%clk
0:00:01.2]} 34... Kxh6 {[%clk 0:00:13.7]} 0-1

[Event "Early-Titled-Tuesday-Blitz-April-23-2024"]
[Site "Chess.com"]
[Date "2024.04.23"]
[Round "3"]
[White "FuenfgegenWilly"]
[Black "GelmanAlexander"]
[Result "1-0"]
[WhiteElo "2494"]
[BlackElo "2644"]
[TimeControl "180+1"]
[EndTime "8:28:55 PDT"]
[Termination "FuenfgegenWilly won on time"]

1. d4 {[%clk 0:03:00.9]} 1... Nf6 {[%clk 0:02:59.6]} 2. c4 {[%clk 0:03:00.7]}
2... c5 {[%clk 0:02:59.9]} 3. d5 {[%clk 0:02:59.2]} 3... b5 {[%clk 0:03:00.1]}
4. Qc2 {[%clk 0:02:59.7]} 4... b4 {[%clk 0:02:59.8]} 5. b3 {[%clk 0:02:59.3]}
5... d6 {[%clk 0:03:00]} 6. e4 {[%clk 0:02:57.7]} 6... g6 {[%clk 0:03:00.3]} 7.
Bb2 {[%clk 0:02:57.7]} 7... Bg7 {[%clk 0:03:00.9]} 8. Nd2 {[%clk 0:02:58]} 8...
O-O {[%clk 0:03:01.2]} 9. Ngf3 {[%clk 0:02:58.1]} 9... a5 {[%clk 0:03:01.5]} 10.
a4 {[%clk 0:02:57.1]} 10... e5 {[%clk 0:02:54.7]} 11. dxe6 {[%clk 0:02:54.3]}
11... fxe6 {[%clk 0:02:54.5]} 12. Bd3 {[%clk 0:02:53.9]} 12... e5 {[%clk
0:02:54.1]} 13. O-O-O {[%clk 0:02:52.5]} 13... Nc6 {[%clk 0:02:53.2]} 14. Nf1
{[%clk 0:02:51.8]} 14... Bg4 {[%clk 0:02:44.5]} 15. Be2 {[%clk 0:02:42.1]} 15...
Nh5 {[%clk 0:02:38.1]} 16. h3 {[%clk 0:02:26.2]} 16... Bxf3 {[%clk 0:01:46.9]}
17. Bxf3 {[%clk 0:02:27.1]} 17... Nf4 {[%clk 0:01:44.9]} 18. Ne3 {[%clk
0:02:23.3]} 18... Ne6 {[%clk 0:01:41.1]} 19. Nd5 {[%clk 0:02:10.2]} 19... Ned4
{[%clk 0:01:27.2]} 20. Qd3 {[%clk 0:02:05.5]} 20... Qh4 {[%clk 0:01:11.2]} 21.
Kb1 {[%clk 0:01:56.2]} 21... Qxf2 {[%clk 0:01:07.6]} 22. Rhf1 {[%clk 0:01:55]}
22... Qg3 {[%clk 0:01:05.9]} 23. Rd2 {[%clk 0:01:38.2]} 23... Rf7 {[%clk
0:01:03.6]} 24. Rdf2 {[%clk 0:01:35.9]} 24... Raf8 {[%clk 0:01:03.1]} 25. Bc1
{[%clk 0:01:32.4]} 25... Nxf3 {[%clk 0:00:56.3]} 26. Rxf3 {[%clk 0:01:27.2]}
26... Qxg2 {[%clk 0:00:53.3]} 27. Ne3 {[%clk 0:01:02.8]} 27... Rxf3 {[%clk
0:00:12.2]} 28. Qd5+ {[%clk 0:00:52.6]} 28... Kh8 {[%clk 0:00:11.9]} 29. Nxg2
{[%clk 0:00:18.5]} 29... Rxf1 {[%clk 0:00:11.6]} 30. Ne3 {[%clk 0:00:10.4]}
30... Re1 {[%clk 0:00:02.6]} 31. Qxc6 {[%clk 0:00:07.6]} 31... Bh6 {[%clk
0:00:03]} 32. Qxd6 {[%clk 0:00:05.9]} 1-0

[Event "Early-Titled-Tuesday-Blitz-April-23-2024"]
[Site "Chess.com"]
[Date "2024.04.23"]
[Round "3"]
[White "ansko1999"]
[Black "stasOR4ik"]
[Result "1/2-1/2"]
[WhiteElo "2613"]
[BlackElo "2431"]
[TimeControl "180+1"]
[EndTime "8:28:58 PDT"]
[Termination "Game drawn by repetition"]

1. Nc3 {[%clk 0:03:00.9]} 1... d5 {[%clk 0:02:59.6]} 2. d4 {[%clk 0:03:00.7]}
2... Nf6 {[%clk 0:02:59.7]} 3. Bf4 {[%clk 0:03:01]} 3... c6 {[%clk 0:02:56.1]}
4. e3 {[%clk 0:03:00.8]} 4... Bf5 {[%clk 0:02:55.4]} 5. Bd3 {[%clk 0:03:00.8]}
5... Bg6 {[%clk 0:02:53.3]} 6. Nf3 {[%clk 0:02:57.7]} 6... Nbd7 {[%clk
0:02:53.1]} 7. O-O {[%clk 0:02:56.6]} 7... e6 {[%clk 0:02:53.3]} 8. Ne5 {[%clk
0:02:54.4]} 8... Nxe5 {[%clk 0:02:52.9]} 9. dxe5 {[%clk 0:02:54.4]} 9... Nh5
{[%clk 0:02:52.7]} 10. Ne2 {[%clk 0:02:48.6]} 10... Nxf4 {[%clk 0:02:48.6]} 11.
Nxf4 {[%clk 0:02:48.8]} 11... Qc7 {[%clk 0:02:47.3]} 12. Bxg6 {[%clk 0:02:45.5]}
12... hxg6 {[%clk 0:02:46.1]} 13. Nd3 {[%clk 0:02:46.2]} 13... c5 {[%clk
0:02:42.8]} 14. b3 {[%clk 0:02:32.2]} 14... c4 {[%clk 0:02:39.6]} 15. bxc4
{[%clk 0:02:33.1]} 15... dxc4 {[%clk 0:02:39.4]} 16. Nf4 {[%clk 0:02:33.8]}
16... Qxe5 {[%clk 0:02:38.6]} 17. Qf3 {[%clk 0:02:29.2]} 17... O-O-O {[%clk
0:02:30.4]} 18. Rab1 {[%clk 0:02:26.7]} 18... Rd7 {[%clk 0:02:30.5]} 19. h3
{[%clk 0:02:04.6]} 19... Bd6 {[%clk 0:02:24.4]} 20. Rfd1 {[%clk 0:01:55.9]}
20... g5 {[%clk 0:02:23.8]} 21. Ne2 {[%clk 0:01:55.5]} 21... f5 {[%clk
0:02:07.6]} 22. Rd4 {[%clk 0:01:50.6]} 22... g4 {[%clk 0:02:04.3]} 23. Rxc4+
{[%clk 0:01:48.8]} 23... Kb8 {[%clk 0:02:04.1]} 24. Qc6 {[%clk 0:01:32.6]} 24...
gxh3 {[%clk 0:01:25.2]} 25. Qxd7 {[%clk 0:00:55.9]} 25... Qh2+ {[%clk
0:01:23.4]} 26. Kf1 {[%clk 0:00:56.4]} 26... hxg2+ {[%clk 0:01:22.9]} 27. Ke1
{[%clk 0:00:56.8]} 27... Qh1+ {[%clk 0:01:18.5]} 28. Kd2 {[%clk 0:00:55]} 28...
Qxb1 {[%clk 0:01:17.6]} 29. Qxd6+ {[%clk 0:00:52.1]} 29... Ka8 {[%clk
0:01:17.8]} 30. Qd7 {[%clk 0:00:21.9]} 30... a6 {[%clk 0:00:56.7]} 31. Rc8+
{[%clk 0:00:22.2]} 31... Rxc8 {[%clk 0:00:56.2]} 32. Qxc8+ {[%clk 0:00:23.1]}
32... Ka7 {[%clk 0:00:56.9]} 33. Qc5+ {[%clk 0:00:23.8]} 33... Ka8 {[%clk
0:00:57.4]} 34. Qc8+ {[%clk 0:00:20.9]} 34... Ka7 {[%clk 0:00:57.5]} 35. Qc5+
{[%clk 0:00:21.6]} 35... Ka8 {[%clk 0:00:57.4]} 36. Qf8+ {[%clk 0:00:21.6]}
36... Ka7 {[%clk 0:00:57.2]} 37. Qxg7 {[%clk 0:00:22]} 37... Qb4+ {[%clk
0:00:56.9]} 38. Nc3 {[%clk 0:00:09.3]} 38... Qd6+ {[%clk 0:00:49.5]} 39. Ke2
{[%clk 0:00:08.4]} 39... Qh2 {[%clk 0:00:49.3]} 40. Qd4+ {[%clk 0:00:06.3]}
40... Ka8 {[%clk 0:00:40.6]} 41. Qd8+ {[%clk 0:00:06.4]} 41... Ka7 {[%clk
0:00:34.5]} 42. Qd4+ {[%clk 0:00:06.8]} 42... Ka8 {[%clk 0:00:33.4]} 43. Qd8+
{[%clk 0:00:07.1]} 43... Qb8 {[%clk 0:00:30.1]} 44. Qg5 {[%clk 0:00:06.7]} 44...
Qh2 {[%clk 0:00:30]} 45. Qd8+ {[%clk 0:00:03.1]} 1/2-1/2

[Event "Early-Titled-Tuesday-Blitz-April-23-2024"]
[Site "Chess.com"]
[Date "2024.04.23"]
[Round "3"]
[White "ValentinDragnev"]
[Black "ninguno46"]
[Result "0-1"]
[WhiteElo "2730"]
[BlackElo "2532"]
[TimeControl "180+1"]
[EndTime "8:28:59 PDT"]
[Termination "ninguno46 won by resignation"]

1. d4 {[%clk 0:02:57.2]} 1... Nf6 {[%clk 0:02:59.3]} 2. Nf3 {[%clk 0:02:55.9]}
2... e6 {[%clk 0:02:58.1]} 3. Bg5 {[%clk 0:02:54.3]} 3... h6 {[%clk 0:02:57.1]}
4. Bxf6 {[%clk 0:02:54.2]} 4... Qxf6 {[%clk 0:02:56.4]} 5. e4 {[%clk 0:02:54.9]}
5... d6 {[%clk 0:02:55.8]} 6. Nc3 {[%clk 0:02:54]} 6... a6 {[%clk 0:02:55.3]} 7.
a4 {[%clk 0:02:52.7]} 7... Nd7 {[%clk 0:02:49]} 8. Qd2 {[%clk 0:02:53.4]} 8...
c6 {[%clk 0:02:42.6]} 9. Bd3 {[%clk 0:02:50.1]} 9... e5 {[%clk 0:02:41.8]} 10.
d5 {[%clk 0:02:41.6]} 10... c5 {[%clk 0:02:40.8]} 11. a5 {[%clk 0:02:38.3]}
11... g6 {[%clk 0:02:37.8]} 12. O-O {[%clk 0:02:35.3]} 12... Bg7 {[%clk
0:02:36.5]} 13. Qe2 {[%clk 0:02:35.7]} 13... O-O {[%clk 0:02:33.9]} 14. Nd2
{[%clk 0:02:36.4]} 14... Qe7 {[%clk 0:02:27.5]} 15. Nc4 {[%clk 0:02:06.4]} 15...
Nf6 {[%clk 0:02:26.3]} 16. Rab1 {[%clk 0:01:56.1]} 16... Nh5 {[%clk 0:02:20.3]}
17. g3 {[%clk 0:01:56.3]} 17... Bh3 {[%clk 0:02:19.3]} 18. Rfe1 {[%clk
0:01:54.6]} 18... Nf6 {[%clk 0:02:15.8]} 19. b4 {[%clk 0:01:53.2]} 19... cxb4
{[%clk 0:02:15.5]} 20. Rxb4 {[%clk 0:01:54.1]} 20... Rac8 {[%clk 0:02:15.3]} 21.
Reb1 {[%clk 0:01:54]} 21... Rc7 {[%clk 0:02:15.4]} 22. Rb6 {[%clk 0:01:48]}
22... Ne8 {[%clk 0:02:10.5]} 23. Qd2 {[%clk 0:01:20.9]} 23... h5 {[%clk
0:02:08.4]} 24. Ne2 {[%clk 0:01:07.9]} 24... h4 {[%clk 0:01:58.9]} 25. Qb4
{[%clk 0:01:06.2]} 25... hxg3 {[%clk 0:01:46.2]} 26. hxg3 {[%clk 0:01:06.1]}
26... Qg5 {[%clk 0:01:21]} 27. Nxd6 {[%clk 0:00:53.8]} 27... Qg4 {[%clk
0:01:08.3]} 28. Nc3 {[%clk 0:00:19.4]} 28... Nxd6 {[%clk 0:01:01.8]} 29. Rxd6
{[%clk 0:00:18.4]} 29... Rfc8 {[%clk 0:00:52.7]} 30. Be2 {[%clk 0:00:18.7]}
30... Qg5 {[%clk 0:00:47.5]} 31. Nd1 {[%clk 0:00:14.2]} 31... Bf8 {[%clk
0:00:46.8]} 32. Qb6 {[%clk 0:00:14.1]} 32... Bxd6 {[%clk 0:00:43.5]} 33. Qxd6
{[%clk 0:00:15]} 33... Rxc2 {[%clk 0:00:42.7]} 34. Bf3 {[%clk 0:00:15.5]} 34...
Bg4 {[%clk 0:00:27.8]} 35. Bxg4 {[%clk 0:00:14.4]} 35... Qxg4 {[%clk 0:00:27.8]}
36. Qxe5 {[%clk 0:00:14.7]} 36... Rc1 {[%clk 0:00:26]} 37. Rxc1 {[%clk
0:00:12.7]} 37... Rxc1 {[%clk 0:00:26.1]} 38. Qe8+ {[%clk 0:00:13.5]} 38... Kg7
{[%clk 0:00:25.7]} 39. Qe5+ {[%clk 0:00:13.5]} 39... Kh7 {[%clk 0:00:25.9]} 40.
Kg2 {[%clk 0:00:12.6]} 40... Qxd1 {[%clk 0:00:24.3]} 0-1

[Event "Early-Titled-Tuesday-Blitz-April-23-2024"]
[Site "Chess.com"]
[Date "2024.04.23"]
[Round "3"]
[White "TokChess"]
[Black "Jojo_898"]
[Result "0-1"]
[WhiteElo "2607"]
[BlackElo "2444"]
[TimeControl "180+1"]
[EndTime "8:28:59 PDT"]
[Termination "Jojo_898 won by checkmate"]

1. e4 {[%clk 0:03:00.9]} 1... d6 {[%clk 0:03:00.1]} 2. Nf3 {[%clk 0:02:59.8]}
2... Nf6 {[%clk 0:03:00.2]} 3. Nc3 {[%clk 0:02:59.1]} 3... g6 {[%clk 0:03:00.1]}
4. Bc4 {[%clk 0:02:53.7]} 4... c6 {[%clk 0:02:59.6]} 5. d3 {[%clk 0:02:53.3]}
5... Bg7 {[%clk 0:02:59.3]} 6. a4 {[%clk 0:02:53.7]} 6... O-O {[%clk 0:02:59]}
7. h3 {[%clk 0:02:53.4]} 7... d5 {[%clk 0:02:51.7]} 8. exd5 {[%clk 0:02:54.3]}
8... cxd5 {[%clk 0:02:52]} 9. Bb3 {[%clk 0:02:55]} 9... Nc6 {[%clk 0:02:48.8]}
10. O-O {[%clk 0:02:54]} 10... h6 {[%clk 0:02:40.4]} 11. Re1 {[%clk 0:02:53.7]}
11... Qd6 {[%clk 0:02:26.1]} 12. Nb5 {[%clk 0:02:49.2]} 12... Qb8 {[%clk
0:02:19.4]} 13. Nbd4 {[%clk 0:02:34.2]} 13... Nxd4 {[%clk 0:02:15.5]} 14. Nxd4
{[%clk 0:02:34.2]} 14... e5 {[%clk 0:02:16]} 15. Nf3 {[%clk 0:02:31.8]} 15...
Re8 {[%clk 0:02:10.7]} 16. Bd2 {[%clk 0:02:23.2]} 16... Bf5 {[%clk 0:02:03.8]}
17. Bc3 {[%clk 0:02:22.9]} 17... d4 {[%clk 0:01:57.1]} 18. Bb4 {[%clk
0:02:21.5]} 18... Qc7 {[%clk 0:01:48.3]} 19. a5 {[%clk 0:02:19.5]} 19... a6
{[%clk 0:01:45.2]} 20. Ba4 {[%clk 0:02:13.7]} 20... Re6 {[%clk 0:01:42.5]} 21.
Bb3 {[%clk 0:02:14.3]} 21... Ree8 {[%clk 0:01:42.5]} 22. Nd2 {[%clk 0:01:59]}
22... Be6 {[%clk 0:01:33.1]} 23. Bxe6 {[%clk 0:01:53]} 23... Rxe6 {[%clk
0:01:31.2]} 24. Nc4 {[%clk 0:01:53.9]} 24... e4 {[%clk 0:01:26.5]} 25. Nb6
{[%clk 0:01:04.8]} 25... Rae8 {[%clk 0:01:17.2]} 26. dxe4 {[%clk 0:01:05.3]}
26... Nxe4 {[%clk 0:01:15.8]} 27. Qd3 {[%clk 0:00:59.3]} 27... Qf4 {[%clk
0:01:08.1]} 28. Rf1 {[%clk 0:00:50.5]} 28... Be5 {[%clk 0:00:51.7]} 29. g3
{[%clk 0:00:45.3]} 29... Qf5 {[%clk 0:00:50.7]} 30. Rae1 {[%clk 0:00:39.9]}
30... Bg7 {[%clk 0:00:45.9]} 31. Kg2 {[%clk 0:00:35.2]} 31... Qh5 {[%clk
0:00:25.1]} 32. Qf3 {[%clk 0:00:26.8]} 32... Qb5 {[%clk 0:00:20.1]} 33. c3
{[%clk 0:00:09.6]} 33... Nd2 {[%clk 0:00:18.1]} 34. Rxe6 {[%clk 0:00:02.4]}
34... Qxf1+ {[%clk 0:00:16.7]} 35. Kh2 {[%clk 0:00:01.3]} 35... Nxf3# {[%clk
0:00:17.2]} 0-1

[Event "Early-Titled-Tuesday-Blitz-April-23-2024"]
[Site "Chess.com"]
[Date "2024.04.23"]
[Round "3"]
[White "Sandstad"]
[Black "RandomNoob04"]
[Result "1/2-1/2"]
[WhiteElo "2488"]
[BlackElo "2653"]
[TimeControl "180+1"]
[EndTime "8:29:01 PDT"]
[Termination "Game drawn by agreement"]

1. d4 {[%clk 0:03:00.9]} 1... Nf6 {[%clk 0:02:59.2]} 2. c4 {[%clk 0:03:01.1]}
2... c5 {[%clk 0:02:59]} 3. d5 {[%clk 0:03:01.2]} 3... b5 {[%clk 0:02:58.4]} 4.
cxb5 {[%clk 0:03:02.1]} 4... a6 {[%clk 0:02:58.7]} 5. e3 {[%clk 0:03:02.5]} 5...
axb5 {[%clk 0:02:58.6]} 6. Bxb5 {[%clk 0:03:02]} 6... Qa5+ {[%clk 0:02:59.1]} 7.
Nc3 {[%clk 0:03:01.8]} 7... Bb7 {[%clk 0:02:59.7]} 8. Bd2 {[%clk 0:02:59]} 8...
Qb6 {[%clk 0:02:59.8]} 9. a4 {[%clk 0:02:57.2]} 9... Nxd5 {[%clk 0:02:59.7]} 10.
Nf3 {[%clk 0:02:56]} 10... e6 {[%clk 0:02:59.8]} 11. e4 {[%clk 0:02:54.8]} 11...
Nb4 {[%clk 0:02:58.1]} 12. O-O {[%clk 0:02:51.8]} 12... Be7 {[%clk 0:02:58]} 13.
Bf4 {[%clk 0:02:44.7]} 13... O-O {[%clk 0:02:56.4]} 14. Ne5 {[%clk 0:02:41.5]}
14... Qd8 {[%clk 0:02:56.8]} 15. Nxd7 {[%clk 0:02:31.3]} 15... Nxd7 {[%clk
0:02:56.9]} 16. Qxd7 {[%clk 0:02:29.5]} 16... Qxd7 {[%clk 0:02:57.4]} 17. Bxd7
{[%clk 0:02:30.4]} 17... c4 {[%clk 0:02:58]} 18. Bb5 {[%clk 0:02:19.4]} 18...
Rfc8 {[%clk 0:02:53.8]} 19. Be3 {[%clk 0:02:11]} 19... Nd3 {[%clk 0:02:51.4]}
20. Rab1 {[%clk 0:02:10.5]} 20... Bf6 {[%clk 0:02:47.4]} 21. f3 {[%clk
0:01:47.9]} 21... Ba6 {[%clk 0:02:02.8]} 22. Rfd1 {[%clk 0:01:23.4]} 22... Nxb2
{[%clk 0:01:56.4]} 23. Rxb2 {[%clk 0:01:24.3]} 23... Bxc3 {[%clk 0:01:56.9]} 24.
Rc2 {[%clk 0:01:22.9]} 24... Bf6 {[%clk 0:01:55.9]} 25. Kf2 {[%clk 0:01:06.8]}
25... Kf8 {[%clk 0:01:33]} 26. Ke2 {[%clk 0:01:03.8]} 26... Ke7 {[%clk 0:01:13]}
27. Bd4 {[%clk 0:01:01.6]} 27... Bxd4 {[%clk 0:00:53.5]} 28. Rxd4 {[%clk
0:01:02.5]} 28... Bxb5 {[%clk 0:00:52.8]} 29. axb5 {[%clk 0:01:01.8]} 29... Ra4
{[%clk 0:00:53]} 30. b6 {[%clk 0:00:51.5]} 30... Rb4 {[%clk 0:00:53.2]} 31. b7
{[%clk 0:00:44.7]} 31... Rxb7 {[%clk 0:00:53.2]} 32. Rdxc4 {[%clk 0:00:45.1]}
32... Rxc4 {[%clk 0:00:54.1]} 33. Rxc4 {[%clk 0:00:46]} 33... Rb2+ {[%clk
0:00:54.6]} 34. Kf1 {[%clk 0:00:46.2]} 34... Kd6 {[%clk 0:00:52.4]} 35. Kg1
{[%clk 0:00:33.7]} 35... h5 {[%clk 0:00:51]} 36. h4 {[%clk 0:00:31.9]} 36... g6
{[%clk 0:00:48.8]} 37. Kh2 {[%clk 0:00:30.3]} 37... Ke5 {[%clk 0:00:48.1]} 38.
Kg3 {[%clk 0:00:30.4]} 38... f5 {[%clk 0:00:44.8]} 39. exf5 {[%clk 0:00:19.5]}
39... gxf5 {[%clk 0:00:45.7]} 40. Rc8 {[%clk 0:00:18.9]} 40... Kf6 {[%clk
0:00:23.1]} 41. Rh8 {[%clk 0:00:18.6]} 41... Kg6 {[%clk 0:00:23.4]} 42. Re8
{[%clk 0:00:18.9]} 42... Kf7 {[%clk 0:00:19.7]} 43. Rh8 {[%clk 0:00:18.6]} 43...
Kg6 {[%clk 0:00:16.5]} 44. Rg8+ {[%clk 0:00:19]} 1/2-1/2

[Event "Early-Titled-Tuesday-Blitz-April-23-2024"]
[Site "Chess.com"]
[Date "2024.04.23"]
[Round "3"]
[White "Ariadna_Atreides"]
[Black "NigiriSushies"]
[Result "0-1"]
[WhiteElo "2235"]
[BlackElo "2440"]
[TimeControl "180+1"]
[EndTime "8:29:08 PDT"]
[Termination "NigiriSushies won on time"]

1. d4 {[%clk 0:03:00.9]} 1... b6 {[%clk 0:02:58.4]} 2. Nd2 {[%clk 0:02:58.2]}
2... Bb7 {[%clk 0:02:58.9]} 3. e4 {[%clk 0:02:57.8]} 3... d6 {[%clk 0:02:58.9]}
4. f3 {[%clk 0:02:56.5]} 4... g6 {[%clk 0:02:51.1]} 5. Bb5+ {[%clk 0:02:52.5]}
5... Nd7 {[%clk 0:02:49.5]} 6. Ne2 {[%clk 0:02:49.8]} 6... Bg7 {[%clk
0:02:48.5]} 7. c3 {[%clk 0:02:46.4]} 7... a6 {[%clk 0:02:45.4]} 8. Bd3 {[%clk
0:02:44.4]} 8... e6 {[%clk 0:02:45.7]} 9. O-O {[%clk 0:02:42.8]} 9... Ne7 {[%clk
0:02:45.1]} 10. a4 {[%clk 0:02:42.4]} 10... O-O {[%clk 0:02:44.6]} 11. a5 {[%clk
0:02:36.7]} 11... b5 {[%clk 0:02:41.2]} 12. b4 {[%clk 0:02:27.6]} 12... c5
{[%clk 0:02:40.6]} 13. Bb2 {[%clk 0:02:25.3]} 13... Rc8 {[%clk 0:02:19.5]} 14.
Rc1 {[%clk 0:02:11.9]} 14... Nc6 {[%clk 0:02:07.1]} 15. Bb1 {[%clk 0:01:38.2]}
15... cxb4 {[%clk 0:01:55.3]} 16. d5 {[%clk 0:01:29.9]} 16... exd5 {[%clk
0:01:51.5]} 17. exd5 {[%clk 0:01:28.4]} 17... bxc3 {[%clk 0:01:49.9]} 18. Nxc3
{[%clk 0:01:16.3]} 18... Nxa5 {[%clk 0:01:43.4]} 19. Nde4 {[%clk 0:01:08.8]}
19... Nc4 {[%clk 0:01:25.4]} 20. Ba1 {[%clk 0:01:04.1]} 20... Ne3 {[%clk
0:01:23]} 21. Qb3 {[%clk 0:00:55.6]} 21... Nc5 {[%clk 0:01:10.8]} 22. Nxc5
{[%clk 0:00:54.8]} 22... Rxc5 {[%clk 0:01:08.2]} 23. Rfe1 {[%clk 0:00:42.5]}
23... Nxd5 {[%clk 0:01:04.6]} 24. Nxd5 {[%clk 0:00:32.4]} 24... Bxd5 {[%clk
0:01:00.3]} 25. Qa3 {[%clk 0:00:31.4]} 25... Rxc1 {[%clk 0:00:59.2]} 26. Rxc1
{[%clk 0:00:30.7]} 26... Qb6+ {[%clk 0:00:57.9]} 27. Kh1 {[%clk 0:00:29.9]}
27... Bxa1 {[%clk 0:00:56.5]} 28. Qxa1 {[%clk 0:00:29.7]} 28... a5 {[%clk
0:00:55.6]} 29. Rd1 {[%clk 0:00:28.3]} 29... Bb3 {[%clk 0:00:54.1]} 30. Rc1
{[%clk 0:00:24.9]} 30... a4 {[%clk 0:00:52.7]} 31. h4 {[%clk 0:00:15.3]} 31...
Qe3 {[%clk 0:00:48.2]} 32. Bc2 {[%clk 0:00:07.6]} 32... Rc8 {[%clk 0:00:40.8]}
33. Qb2 {[%clk 0:00:03.1]} 33... Rxc2 {[%clk 0:00:31.3]} 34. Rxc2 {[%clk
0:00:03.1]} 34... Qe1+ {[%clk 0:00:31.5]} 35. Kh2 {[%clk 0:00:02.9]} 35... Qxh4+
{[%clk 0:00:32.4]} 36. Kg1 {[%clk 0:00:03.3]} 36... Bxc2 {[%clk 0:00:32.8]} 37.
Qxc2 {[%clk 0:00:03.5]} 37... Qd4+ {[%clk 0:00:33.4]} 38. Kh2 {[%clk 0:00:03.2]}
38... a3 {[%clk 0:00:33.9]} 39. Qc8+ {[%clk 0:00:02.8]} 39... Kg7 {[%clk
0:00:34.3]} 40. Qa8 {[%clk 0:00:02.5]} 40... b4 {[%clk 0:00:34.3]} 41. Qa6
{[%clk 0:00:02.5]} 41... Qe5+ {[%clk 0:00:27.9]} 42. Kg1 {[%clk 0:00:02.7]}
42... Qa1+ {[%clk 0:00:28.3]} 43. Kf2 {[%clk 0:00:02.5]} 43... a2 {[%clk
0:00:28.3]} 44. Qa7 {[%clk 0:00:02]} 44... Qb2+ {[%clk 0:00:28.4]} 45. Kg3
{[%clk 0:00:02.2]} 45... a1=Q {[%clk 0:00:28.7]} 0-1

[Event "Early-Titled-Tuesday-Blitz-April-23-2024"]
[Site "Chess.com"]
[Date "2024.04.23"]
[Round "3"]
[White "FGHSMN"]
[Black "luckyswitchback"]
[Result "0-1"]
[WhiteElo "2916"]
[BlackElo "2718"]
[TimeControl "180+1"]
[EndTime "8:29:10 PDT"]
[Termination "luckyswitchback won by checkmate"]

1. e4 {[%clk 0:03:00.9]} 1... e5 {[%clk 0:03:00.1]} 2. Nf3 {[%clk 0:03:01.4]}
2... Nc6 {[%clk 0:03:00.6]} 3. Bc4 {[%clk 0:02:57.5]} 3... Nf6 {[%clk 0:02:59]}
4. d3 {[%clk 0:02:57.1]} 4... Bc5 {[%clk 0:02:57.5]} 5. O-O {[%clk 0:02:57.5]}
5... O-O {[%clk 0:02:56.5]} 6. h3 {[%clk 0:02:57.8]} 6... a6 {[%clk 0:02:51.2]}
7. a4 {[%clk 0:02:56.3]} 7... h6 {[%clk 0:02:48.7]} 8. Re1 {[%clk 0:02:52.9]}
8... d5 {[%clk 0:02:41.4]} 9. exd5 {[%clk 0:02:48.3]} 9... Nxd5 {[%clk
0:02:41.7]} 10. Nc3 {[%clk 0:02:13.5]} 10... Nxc3 {[%clk 0:02:28.7]} 11. bxc3
{[%clk 0:02:14.4]} 11... Qf6 {[%clk 0:02:28.1]} 12. Bd5 {[%clk 0:02:01]} 12...
Bd7 {[%clk 0:02:23.4]} 13. Be3 {[%clk 0:01:57.5]} 13... Bd6 {[%clk 0:02:09.3]}
14. c4 {[%clk 0:01:52.1]} 14... b6 {[%clk 0:01:44.9]} 15. Nd2 {[%clk 0:01:46.2]}
15... Qg6 {[%clk 0:01:36.1]} 16. Qf3 {[%clk 0:01:26.8]} 16... Bb4 {[%clk
0:01:28]} 17. Kh1 {[%clk 0:00:48]} 17... Rae8 {[%clk 0:01:22.6]} 18. Re2 {[%clk
0:00:40.6]} 18... Kh7 {[%clk 0:01:14.5]} 19. Rb1 {[%clk 0:00:38.3]} 19... f5
{[%clk 0:01:07]} 20. h4 {[%clk 0:00:30.4]} 20... Bxd2 {[%clk 0:00:56.4]} 21.
Rxd2 {[%clk 0:00:27.7]} 21... Ne7 {[%clk 0:00:27.8]} 22. h5 {[%clk 0:00:25.4]}
22... Qf6 {[%clk 0:00:26]} 23. d4 {[%clk 0:00:15.1]} 23... e4 {[%clk 0:00:20.7]}
24. Qf4 {[%clk 0:00:14.4]} 24... Nxd5 {[%clk 0:00:06.6]} 25. cxd5 {[%clk
0:00:15.2]} 25... Rc8 {[%clk 0:00:05.7]} 26. a5 {[%clk 0:00:14.6]} 26... b5
{[%clk 0:00:05.3]} 27. g3 {[%clk 0:00:10.7]} 27... Rfd8 {[%clk 0:00:05.6]} 28.
Qe5 {[%clk 0:00:10.5]} 28... Be8 {[%clk 0:00:05.2]} 29. Qxf6 {[%clk 0:00:10.4]}
29... gxf6 {[%clk 0:00:06.1]} 30. Kg2 {[%clk 0:00:09.8]} 30... Rxd5 {[%clk
0:00:06]} 31. c3 {[%clk 0:00:10.3]} 31... Bxh5 {[%clk 0:00:06.1]} 32. Kg1 {[%clk
0:00:10]} 32... Bf3 {[%clk 0:00:06.5]} 33. Rc1 {[%clk 0:00:10.4]} 33... f4
{[%clk 0:00:06.9]} 34. Bxf4 {[%clk 0:00:07.3]} 34... Rh5 {[%clk 0:00:07]} 35. g4
{[%clk 0:00:02.8]} 35... Rh1# {[%clk 0:00:07.9]} 0-1